fUST/lending_fUST_20250729
["ID","MTS","AMOUNT","RATE_DAILY","PERIOD"]
[375967120,1753803042283,-460.0,0.00018865,2]
[375967122,1753803042292,-460.0,0.00018865,2]
[375967124,1753803042304,-460.0,0.00018865,2]
[375967126,1753803042313,-460.0,0.00018865,2]
[375967128,1753803042323,-460.0,0.00018865,2]
[375967130,1753803042331,-460.0,0.00018865,2]
[375967132,1753803042341,-460.0,0.00018865,2]
[375967134,1753803042350,-460.0,0.00018865,2]
[375967135,1753803042359,-1940.93,0.00018865,2]
[375967138,1753803042369,-460.0,0.00018865,2]
[375967140,1753803042378,-424.2059313,0.00018865,2]
[375967142,1753803042388,-460.0,0.00018865,2]
[375967144,1753803042397,-460.0,0.00018865,2]
[375967146,1753803042407,-460.0,0.00018865,2]
[375967148,1753803042416,-460.0,0.00018865,2]
[375967150,1753803042425,-460.0,0.00018865,2]
[375967152,1753803042434,-460.0,0.00018865,2]
[375967154,1753803042443,-460.0,0.00018865,2]
[375967156,1753803042452,-460.0,0.00018865,2]
[375967158,1753803042461,-460.0,0.00018865,2]
[375967160,1753803042470,-460.0,0.00018865,2]
[375967162,1753803042479,-460.0,0.00018865,2]
[375967164,1753803042488,-460.0,0.00018865,2]
[375967165,1753803042497,-460.0,0.00018865,2]
[375967167,1753803042507,-460.0,0.00018865,2]
[375967170,1753803042516,-460.0,0.00018866,2]
[375967171,1753803042525,-500.0,0.00018866,2]
[375967173,1753803042535,-460.0,0.00018866,2]
[375967176,1753803042544,-460.0,0.00018866,2]
[375967177,1753803042555,-6119.95,0.00018866,2]
[375967180,1753803042565,-1243.03,0.00018866,2]
[375967181,1753803042574,-2322.32,0.00018866,2]
[375967184,1753803042584,-1588.52,0.00018866,2]
[375967185,1753803042594,-460.0,0.00018866,2]
[375967188,1753803042603,-1969.37,0.00018866,2]
[375967190,1753803042613,-2572.05,0.00018866,2]
[375967192,1753803042622,-460.0,0.00018866,2]
[375967193,1753803042631,-460.0,0.00018866,2]
[375967195,1753803042641,-460.0,0.00018866,2]
[375967197,1753803042650,-500.0,0.00018867,2]
[375967198,1753803042659,-500.0,0.00018873,2]
[375967200,1753803042669,-500.0,0.00018873,2]
[375967202,1753803042678,-500.0,0.00018873,2]
[375967204,1753803042687,-826.95119247,0.000189,2]
[375967206,1753803042697,-1055.51146611,0.00019039,2]
[375967208,1753803042706,-171.22381936,0.0001904,2]
[375967210,1753803042715,-159.0,0.00019096,3]
[375967212,1753803042725,-460.0,0.00019104,2]
[375967214,1753803042735,-461.29692864,0.00019104,2]
[375967216,1753803042744,-270.82481362,0.00019105,2]
[375967221,1753803042913,-482.64,0.00018854,2]
[375967222,1753803042922,-610.39,0.00018866,2]
[375967224,1753803042932,-189.17518638,0.00019105,2]
[375967226,1753803042941,-242.03143647,0.00019105,2]
[375967228,1753803042950,-460.0,0.00019105,2]
[375967229,1753803042959,-460.0,0.00019105,2]
[375967231,1753803042968,-460.0,0.00019105,2]
[375967233,1753803042977,-460.0,0.00019105,2]
[375967234,1753803042987,-2966.61,0.00019105,2]
[375967236,1753803042996,-460.0,0.00019105,2]
[375967238,1753803043005,-460.0,0.00019105,2]
[375967239,1753803043014,-4497.16,0.00019105,2]
[375967240,1753803043023,-2394.69,0.00019105,2]
[375967241,1753803043032,-460.0,0.00019105,2]
[375967242,1753803043041,-467.8,0.00019105,2]
[375967243,1753803043050,-460.0,0.00019105,2]
[375967244,1753803043060,-2002.25,0.00019105,2]
[375967245,1753803043069,-1603.66,0.00019105,2]
[375967246,1753803043078,-460.0,0.00019105,2]
[375967247,1753803043087,-460.0,0.00019105,2]
[375967248,1753803043096,-461.75148002,0.00019106,2]
[375967249,1753803043105,-460.0,0.00019106,2]
[375967250,1753803043115,-460.0,0.00019106,2]
[375967251,1753803043124,-460.0,0.00019106,2]
[375967252,1753803043133,-37.5354232,0.00019106,2]
[375967253,1753803043256,-568.5645768,0.00019106,2]
[375967254,1753803043265,-613.67,0.00019106,2]
[375967256,1753803043275,-460.0,0.00019106,2]
[375967257,1753803043284,-460.0,0.00019106,2]
[375967258,1753803043293,-460.0,0.00019106,2]
[375967259,1753803043303,-460.0,0.00019106,2]
[375967260,1753803043313,-460.0,0.00019106,2]
[375967261,1753803043323,-460.0,0.00019106,2]
[375967262,1753803043333,-460.0,0.00019106,2]
[375967263,1753803043343,-752.02,0.00019106,2]
[375967264,1753803043352,-577.19,0.00019106,2]
[375967266,1753803043362,-460.0,0.00019106,2]
[375967268,1753803043371,-460.0,0.00019106,2]
[375967270,1753803043382,-872.23,0.00019106,2]
[375967271,1753803043391,-460.0,0.00019106,2]
[375967272,1753803043401,-695.82,0.00019106,2]
[375967273,1753803043410,-460.0,0.00019128,2]
[375967274,1753803043420,-460.0,0.00019128,2]
[375967275,1753803043429,-460.0,0.00019128,2]
[375967276,1753803043439,-460.0,0.00019128,2]
[375967277,1753803043448,-168.07191119,0.00019128,2]
[375967283,1753803043626,-460.0,0.00018832,2]
[375967284,1753803043635,-460.0,0.00018854,2]
[375967285,1753803043645,-177.46990937,0.00018854,2]
[375967286,1753803043657,-282.53009063,0.00018854,2]
[375967288,1753803043667,-291.92808881,0.00019128,2]
[375967290,1753803043677,-25.54182056,0.00019128,2]
[375967564,1753803046535,-594.77,0.00018831,2]
[375967566,1753803046544,-460.0,0.00018854,2]
[375967568,1753803046556,-460.0,0.00018861,2]
[375967570,1753803046565,-460.0,0.00018862,2]
[375967572,1753803046574,-460.0,0.00018862,2]
[375967575,1753803046584,-594.77,0.00019105,2]
[375967577,1753803046593,-434.45817944,0.00019128,2]
[375967579,1753803046602,-460.0,0.00019128,2]
[375967581,1753803046611,-460.0,0.00019128,2]
[375967583,1753803046621,-382.51993777,0.00019128,2]
[375967585,1753803046630,-460.0,0.00019128,2]
[375967587,1753803046639,-409.92677761,0.00019128,2]
[375967589,1753803046649,-460.0,0.00019128,2]
[375967591,1753803046658,-460.0,0.00019128,2]
[375967593,1753803046668,-510.25,0.00019128,2]
[375967610,1753803046827,-856.22,0.00019128,2]
[375967612,1753803046838,-460.0,0.00019128,2]
[375967614,1753803046848,-460.0,0.00019128,2]
[375967616,1753803046857,-530.98,0.00019128,2]
[375967618,1753803046867,-460.0,0.00019128,2]
[375967620,1753803046876,-460.0,0.00019128,2]
[375967622,1753803046886,-460.0,0.00019128,2]
[375967624,1753803046895,-564.02,0.00019128,2]
[375967626,1753803046905,-460.0,0.00019128,2]
[375967628,1753803046914,-1045.04,0.00019128,2]
[375967630,1753803046923,-460.0,0.00019128,2]
[375967632,1753803046933,-460.0,0.00019128,2]
[375967634,1753803046942,-483.44,0.00019128,2]
[375967636,1753803046951,-460.0,0.00019128,2]
[375967638,1753803046960,-460.0,0.00019128,2]
[375967640,1753803046970,-552.39,0.00019128,2]
[375967642,1753803046979,-460.0,0.00019128,2]
[375967644,1753803046988,-460.0,0.00019128,2]
[375967646,1753803046998,-482.64,0.00019128,2]
[375967648,1753803047007,-366.50181904,0.00019128,2]
[375967650,1753803047017,-460.0,0.00019128,2]
[375967652,1753803047027,-460.0,0.00019129,2]
[375967654,1753803047037,-460.0,0.00019129,2]
[375967656,1753803047046,-460.0,0.00019129,2]
[375967658,1753803047057,-460.0,0.00019129,2]
[375967660,1753803047066,-460.0,0.00019129,2]
[375967662,1753803047075,-460.0,0.00019129,2]
[375967664,1753803047085,-460.0,0.00019129,2]
[375967666,1753803047095,-614.85,0.00019129,2]
[375967668,1753803047104,-2346.03,0.00019129,2]
[375967669,1753803047113,-1533.23,0.00019129,2]
[375967670,1753803047122,-460.0,0.00019135,2]
[375967671,1753803047132,-2175.22,0.00019135,2]
[375967672,1753803047141,-462.96366391,0.00019135,2]
[375967673,1753803047151,-749.56,0.00019135,2]
[375967674,1753803047161,-808.63,0.00019135,2]
[375967675,1753803047170,-548.34,0.00019135,2]
[375967676,1753803047180,-460.0,0.00019135,2]
[375967677,1753803047189,-460.0,0.00019135,2]
[375967678,1753803047198,-555.65,0.00019135,2]
[375967679,1753803047207,-460.0,0.00019135,2]
[375967680,1753803047216,-1859.83,0.00019135,2]
[375967681,1753803047225,-636.71,0.00019135,2]
[375967682,1753803047235,-1983.29,0.00019135,2]
[375967683,1753803047244,-460.0,0.00019135,2]
[375967684,1753803047253,-460.0,0.00019136,2]
[375967685,1753803047263,-460.0,0.00019136,2]
[375967686,1753803047271,-461.10772437,0.00019136,2]
[375967687,1753803047280,-460.0,0.00019136,2]
[375967688,1753803047290,-240.25452726,0.00019136,2]
[375969346,1753803164061,182.60941488,0.00018266,2]
[375969349,1753803333420,-1200.0,0.00018829,2]
[375969350,1753803333443,-460.0,0.0001883,2]
[375969351,1753803333466,-460.0,0.0001883,2]
[375969352,1753803333489,-460.0,0.0001883,2]
[375969353,1753803333513,-460.0,0.0001883,2]
[375969354,1753803333536,-460.0,0.0001883,2]
[375969355,1753803333561,-460.0,0.0001883,2]
[375969356,1753803333583,-277.78772527,0.0001883,2]
[375969357,1753803333604,-460.0,0.0001883,2]
[375969358,1753803333625,-460.0,0.0001883,2]
[375969359,1753803333647,-460.0,0.0001883,2]
[375969360,1753803333671,-460.0,0.0001883,2]
[375969361,1753803333693,-544.90644396,0.0001883,2]
[375969362,1753803333718,-460.0,0.0001883,2]
[375969363,1753803333740,-460.0,0.0001883,2]
[375969364,1753803333762,-460.0,0.0001883,2]
[375969365,1753803333785,-460.0,0.0001883,2]
[375969366,1753803333810,-460.0,0.0001883,2]
[375969367,1753803333834,-2014.3,0.0001883,2]
[375969368,1753803333861,-460.0,0.0001883,2]
[375969369,1753803333885,-500.0,0.0001883,2]
[375969370,1753803333908,-460.0,0.0001883,2]
[375969371,1753803333931,-460.0,0.0001883,2]
[375969372,1753803333955,-460.0,0.0001883,2]
[375969373,1753803333978,-460.0,0.0001883,2]
[375969374,1753803334002,-462.30616764,0.0001883,2]
[375969375,1753803334027,-460.0,0.00018831,2]
[375969376,1753803334056,-2719.39,0.00018831,2]
[375969377,1753803334080,-485.87,0.00018831,2]
[375969378,1753803334103,-460.0,0.00018831,2]
[375969379,1753803334128,-2195.14,0.00018831,2]
[375969380,1753803334152,-460.0,0.00018831,2]
[375969381,1753803334175,-460.0,0.00018831,2]
[375969382,1753803334200,-4247.07,0.00018831,2]
[375969383,1753803334222,-517.02,0.00018831,2]
[375969384,1753803334246,-1505.85,0.00018831,2]
[375969385,1753803334270,-957.95,0.00018831,2]
[375969386,1753803334297,-460.0,0.00018831,2]
[375969387,1753803334321,-545.21,0.00018831,2]
[375969388,1753803334343,-460.0,0.00018831,2]
[375969389,1753803334365,-460.0,0.00018831,2]
[375969390,1753803334387,-460.0,0.00018831,2]
[375969391,1753803334411,-576.25984744,0.00018831,2]
[375969392,1753803334432,-460.0,0.00018831,2]
[375969393,1753803334453,-460.0,0.00018831,2]
[375969394,1753803334475,-460.0,0.00018831,2]
[375969395,1753803334495,-460.0,0.00018831,2]
[375969396,1753803334518,-500.0,0.00018831,2]
[375969397,1753803334540,-784.87,0.00018831,2]
[375969398,1753803334568,-2234.97,0.00018831,2]
[375969399,1753803334588,-460.0,0.00018831,2]
[375969400,1753803334609,-460.0,0.00018831,2]
[375969401,1753803334631,-460.0,0.00018831,2]
[375969402,1753803334651,-460.0,0.00018831,2]
[375969403,1753803334677,-687.1,0.00018831,2]
[375969404,1753803334699,-460.0,0.00018831,2]
[375969405,1753803334721,-460.0,0.00018832,2]
[375969406,1753803334744,-460.0,0.00018832,2]
[375969407,1753803334767,-460.0,0.00018832,2]
[375969408,1753803334789,-460.0,0.00018832,2]
[375969409,1753803334816,-460.0,0.00018832,2]
[375969410,1753803334842,-460.0,0.00018832,2]
[375969411,1753803334864,-460.0,0.00018832,2]
[375969412,1753803334887,-1879.23,0.00018832,2]
[375969413,1753803334909,-460.0,0.00018832,2]
[375969414,1753803334933,-460.0,0.00018832,2]
[375969415,1753803334954,-460.0,0.00018832,2]
[375969416,1753803334977,-460.0,0.00018832,2]
[375969417,1753803334998,-460.0,0.00018832,2]
[375969418,1753803335021,-460.0,0.00018832,2]
[375969419,1753803335041,-460.0,0.00018832,2]
[375969420,1753803335067,-460.0,0.00018832,2]
[375969421,1753803335088,-460.0,0.00018832,2]
[375969422,1753803335109,-460.0,0.00018832,2]
[375969423,1753803335131,-500.0,0.00018853,2]
[375969424,1753803335153,-460.0,0.00018854,2]
[375969425,1753803335174,-581.7,0.00018854,2]
[375969426,1753803335196,-574.76,0.00018854,2]
[375969427,1753803335219,-741.25,0.00018854,2]
[375969428,1753803335241,-460.0,0.00018854,2]
[375969429,1753803335264,-460.0,0.00018854,2]
[375969430,1753803335285,-460.0,0.00018854,2]
[375969431,1753803335310,-502.64,0.00018854,2]
[375969432,1753803335331,-203.35885752,0.00018854,2]
[375969433,1753803335353,-460.0,0.00018854,2]
[375969434,1753803335375,-460.0,0.00018854,2]
[375969435,1753803335396,-460.0,0.00018854,2]
[375969436,1753803335416,-1.06095817,0.00018854,2]
[375969438,1753803346416,304.339046,0.00013699,2]
[375969441,1753803369765,24900.0,0.00017848,2]
[375969442,1753803376822,5000.0,0.000186,2]
[375969446,1753803619090,1564.7652653,0.00017842,2]
[375969448,1753803700957,800.0,0.00018028,2]
[375969521,1753803982997,166.891778,0.00017829,2]
[375969531,1753804086511,4697.58004482,0.000186,2]
[375969532,1753804222881,316.56129544,0.00018719,2]
[375969671,1753804233679,-325.86236333,0.00018729,2]
[375969673,1753804233689,-151.0,0.00018819,2]
[375969675,1753804233700,-151.0,0.00018819,2]
[375969677,1753804233710,-151.0,0.00018819,2]
[375969679,1753804233719,-256.80548584,0.00018819,2]
[375969682,1753804233731,-243.19451416,0.00018819,2]
[375969684,1753804233740,-719.30756198,0.00018819,2]
[375969726,1753804234184,-318.84,0.00018819,2]
[375969729,1753804234198,-992.14911002,0.00018819,2]
[375969731,1753804234208,-500.0,0.00018819,2]
[375969733,1753804234218,-151.0,0.00018819,2]
[375969734,1753804234227,-151.0,0.00018819,2]
[375969736,1753804234237,-500.0,0.00018819,2]
[375969738,1753804234247,-151.0,0.00018819,2]
[375969740,1753804234257,-310.04088998,0.00018819,2]
[375970408,1753804241216,-189.95911002,0.00018819,2]
[375970410,1753804241226,-3288.60451717,0.00018819,2]
[375970412,1753804241239,-21711.39548283,0.00018819,2]
[375970414,1753804241249,-151.0,0.00018819,2]
[375970416,1753804241258,-151.0,0.00018819,2]
[375970418,1753804241268,-5897.99031185,0.00018819,2]
[375970420,1753804241278,-151.0,0.00018819,2]
[375970422,1753804241287,-500.0,0.00018819,2]
[375970424,1753804241296,-151.0,0.00018819,2]
[375970426,1753804241305,-151.0,0.00018819,2]
[375970428,1753804241315,-151.0,0.00018819,2]
[375970430,1753804241324,-151.0,0.00018819,2]
[375970432,1753804241334,-500.0,0.00018819,2]
[375970434,1753804241348,-151.0,0.00018819,2]
[375970436,1753804241359,-151.0,0.00018819,2]
[375970438,1753804241368,-151.0,0.00018819,2]
[375970440,1753804241379,-500.0,0.00018819,2]
[375970442,1753804241388,-151.0,0.00018819,2]
[375970444,1753804241398,-151.0,0.00018819,2]
[375970446,1753804241407,-500.0,0.00018819,2]
[375970448,1753804241416,-151.0,0.00018819,2]
[375970449,1753804241426,-151.0,0.00018819,2]
[375970450,1753804241436,-151.0,0.00018819,2]
[375970451,1753804241445,-151.0,0.00018819,2]
[375970452,1753804241455,-500.0,0.00018819,2]
[375970453,1753804241464,-500.0,0.00018819,2]
[375970454,1753804241474,-151.0,0.00018819,2]
[375970455,1753804241483,-151.0,0.00018819,2]
[375970456,1753804241493,-500.0,0.00018819,2]
[375970457,1753804241502,-151.0,0.00018819,2]
[375970458,1753804241511,-151.0,0.00018819,2]
[375970459,1753804241520,-151.0,0.00018819,2]
[375970460,1753804241530,-500.0,0.00018819,2]
[375970461,1753804241539,-151.0,0.00018819,2]
[375970462,1753804241548,-500.0,0.00018819,2]
[375970463,1753804241557,-151.0,0.00018819,2]
[375970464,1753804241566,-151.0,0.00018819,2]
[375970465,1753804241575,-151.0,0.00018819,2]
[375970466,1753804241585,-151.0,0.00018819,2]
[375970467,1753804241600,-151.0,0.00018819,2]
[375970468,1753804241609,-500.0,0.00018819,2]
[375970469,1753804241619,-151.0,0.00018819,2]
[375970470,1753804241628,-151.0,0.00018819,2]
[375970471,1753804241637,-151.0,0.00018819,2]
[375970472,1753804241649,-151.0,0.00018819,2]
[375970473,1753804241658,-151.0,0.00018819,2]
[375970474,1753804241668,-151.0,0.00018819,2]
[375970475,1753804241678,-500.0,0.00018819,2]
[375970476,1753804241687,-151.0,0.00018819,2]
[375970477,1753804241696,-151.0,0.00018819,2]
[375970478,1753804241706,-500.0,0.00018819,2]
[375970479,1753804241715,-151.0,0.00018819,2]
[375970480,1753804241724,-151.0,0.00018819,2]
[375970481,1753804241734,-278.72920567,0.00018819,2]
[375970482,1753804241743,-281.68954337,0.00018819,2]
[375970483,1753804241752,-300.0,0.00018827,2]
[375970484,1753804241763,-1200.0,0.00018827,2]
[375970485,1753804241772,-460.0,0.00018828,2]
[375970486,1753804241781,-460.0,0.00018828,2]
[375970487,1753804241790,-460.0,0.00018828,2]
[375970488,1753804241799,-461.29692864,0.00018828,2]
[375970489,1753804241809,-460.0,0.00018828,2]
[375970490,1753804241819,-460.0,0.00018828,2]
[375970491,1753804241828,-251.13224826,0.00018828,2]
[375970492,1753804241841,-460.0,0.00018828,2]
[375970493,1753804241851,-460.0,0.00018828,2]
[375970494,1753804241860,-460.0,0.00018828,2]
[375970495,1753804241870,-460.0,0.00018828,2]
[375970496,1753804241880,-460.0,0.00018828,2]
[375970497,1753804241892,-587.73624226,0.00018828,2]
[375970498,1753804241902,-460.0,0.00018828,2]
[375970499,1753804241912,-460.0,0.00018828,2]
[375970500,1753804241921,-460.0,0.00018828,2]
[375970501,1753804241931,-413.03704515,0.00018828,2]
[375970502,1753804241940,-460.0,0.00018828,2]
[375970503,1753804241949,-460.0,0.00018828,2]
[375970504,1753804241959,-460.0,0.00018828,2]
[375970505,1753804241969,-460.0,0.00018828,2]
[375970506,1753804241978,-460.0,0.00018828,2]
[375970507,1753804241987,-460.0,0.00018828,2]
[375970509,1753804241996,-580.11734371,0.00018828,2]
[375970511,1753804242007,-460.0,0.00018828,2]
[375970513,1753804242016,-460.0,0.00018828,2]
[375970515,1753804242026,-460.0,0.00018828,2]
[375970517,1753804242035,-460.0,0.00018828,2]
[375970519,1753804242044,-460.0,0.00018828,2]
[375970521,1753804242054,-460.0,0.00018828,2]
[375970523,1753804242063,-461.03742344,0.00018828,2]
[375970525,1753804242073,-460.0,0.00018828,2]
[375970527,1753804242083,-460.0,0.00018828,2]
[375970529,1753804242096,-460.0,0.00018828,2]
[375970531,1753804242105,-461.56317054,0.00018828,2]
[375970533,1753804242117,-460.0,0.00018828,2]
[375970535,1753804242126,-912.27505428,0.00018828,2]
[375970546,1753804242224,-1259.44494572,0.00018828,2]
[375970548,1753804242233,-380.77212131,0.00018828,2]
[375970555,1753804242292,-79.22787869,0.00018828,2]
[375970557,1753804242301,-460.0,0.00018828,2]
[375970559,1753804242311,-460.0,0.00018828,2]
[375970561,1753804242321,-460.0,0.00018828,2]
[375970563,1753804242331,-160.0,0.00018829,2]
[375970565,1753804242344,-460.0,0.00018829,2]
[375970567,1753804242354,-460.0,0.00018829,2]
[375970569,1753804242363,-460.44108074,0.00018829,2]
[375970571,1753804242372,-460.0,0.00018829,2]
[375970573,1753804242381,-460.0,0.00018829,2]
[375970575,1753804242391,-460.0,0.00018829,2]
[375970577,1753804242401,-460.0,0.00018829,2]
[375970579,1753804242410,-460.0,0.00018829,2]
[375970581,1753804242420,-460.0,0.00018829,2]
[375970583,1753804242430,-1000.0,0.00018829,2]
[375970585,1753804242440,-249.85811867,0.00018829,2]
[375970587,1753804242449,-460.0,0.00018829,2]
[375970589,1753804242458,-460.62007311,0.00018829,2]
[375970591,1753804242468,-460.0,0.00018829,2]
[375970593,1753804242478,-460.0,0.00018829,2]
[375970594,1753804242487,-460.0,0.00018829,2]
[375970612,1753804242647,-460.0,0.00018829,2]
[375970614,1753804242659,-460.0,0.00018829,2]
[375970616,1753804242669,-306.34530189,0.00018829,2]
[375970618,1753804242679,-460.0,0.00018829,2]
[375970620,1753804242689,-460.0,0.00018829,2]
[375970622,1753804242699,-460.0,0.00018829,2]
[375970624,1753804242708,-460.0,0.00018829,2]
[375970626,1753804242718,-460.0,0.00018829,2]
[375970628,1753804242727,-500.0,0.00018829,2]
[375970630,1753804242737,-500.0,0.00018829,2]
[375970632,1753804242747,-460.0,0.00018829,2]
[375970634,1753804242756,-460.0,0.00018829,2]
[375970636,1753804242766,-460.0,0.00018829,2]
[375970638,1753804242775,-460.0,0.00018829,2]
[375970640,1753804242785,-460.0,0.00018829,2]
[375970642,1753804242796,-460.0,0.00018829,2]
[375970644,1753804242806,-460.0,0.00018829,2]
[375970646,1753804242816,-460.0,0.00018829,2]
[375970648,1753804242825,-460.0,0.00018829,2]
[375970650,1753804242835,-460.78463271,0.00018829,2]
[375970652,1753804242845,-460.0,0.00018829,2]
[375970654,1753804242855,-460.0,0.00018829,2]
[375970656,1753804242864,-460.0,0.00018829,2]
[375970657,1753804242873,-460.0,0.00018829,2]
[375970659,1753804242883,-460.0,0.00018829,2]
[375970661,1753804242892,-460.0,0.00018829,2]
[375970663,1753804242902,-460.0,0.00018829,2]
[375970665,1753804242911,-460.0,0.00018829,2]
[375970667,1753804242921,-460.0,0.00018829,2]
[375970669,1753804242930,-460.0,0.00018829,2]
[375970672,1753804242939,-500.0,0.00018829,2]
[375970674,1753804242949,-460.0,0.00018829,2]
[375970676,1753804242959,-4855.11,0.00018829,2]
[375970678,1753804242968,-460.0,0.00018829,2]
[375970680,1753804242978,-460.0,0.00018829,2]
[375970682,1753804242988,-460.0,0.00018829,2]
[375970684,1753804242998,-460.0,0.00018829,2]
[375970686,1753804243007,-460.0,0.00018829,2]
[375970688,1753804243019,-469.82,0.00018829,2]
[375970690,1753804243029,-787.84,0.00018829,2]
[375970692,1753804243038,-460.0,0.00018829,2]
[375970694,1753804243048,-460.0,0.00018829,2]
[375970696,1753804243057,-460.0,0.00018829,2]
[375970698,1753804243067,-3149.01,0.00018829,2]
[375970700,1753804243077,-460.0,0.00018829,2]
[375970702,1753804243087,-460.0,0.00018829,2]
[375970704,1753804243098,-460.0,0.00018829,2]
[375970706,1753804243108,-460.0,0.00018829,2]
[375970708,1753804243120,-460.0,0.00018829,2]
[375970710,1753804243131,-460.0,0.00018829,2]
[375970712,1753804243141,-460.0,0.00018829,2]
[375970713,1753804243151,-460.0,0.00018829,2]
[375970715,1753804243163,-460.0,0.00018829,2]
[375970717,1753804243174,-460.0,0.00018829,2]
[375970719,1753804243186,-460.0,0.00018829,2]
[375970722,1753804243208,-460.0,0.00018829,2]
[375970723,1753804243220,-460.0,0.00018829,2]
[375970725,1753804243230,-495.34,0.00018829,2]
[375970727,1753804243240,-461.13230748,0.00018829,2]
[375970729,1753804243250,-508.85,0.00018829,2]
[375970731,1753804243259,-460.0,0.00018829,2]
[375970733,1753804243269,-460.0,0.00018829,2]
[375970735,1753804243278,-460.0,0.00018829,2]
[375970737,1753804243288,-460.0,0.00018829,2]
[375970739,1753804243298,-460.0,0.00018829,2]
[375970741,1753804243307,-2300.04,0.00018829,2]
[375970743,1753804243316,-460.0,0.00018829,2]
[375970745,1753804243326,-460.0,0.00018829,2]
[375970747,1753804243336,-538.14,0.00018829,2]
[375970749,1753804243348,-460.0,0.00018829,2]
[375970751,1753804243357,-2564.5,0.00018829,2]
[375970754,1753804243367,-1019.08,0.00018829,2]
[375970756,1753804243376,-460.0,0.00018829,2]
[375970759,1753804243386,-460.0,0.00018829,2]
[375970762,1753804243396,-460.0,0.00018829,2]
[375970765,1753804243405,-460.0,0.00018829,2]
[375970767,1753804243414,-460.0,0.00018829,2]
[375970768,1753804243424,-460.0,0.00018829,2]
[375970770,1753804243434,-460.0,0.00018829,2]
[375970772,1753804243443,-460.0,0.00018829,2]
[375970775,1753804243453,-463.29,0.00018829,2]
[375970778,1753804243462,-460.0,0.00018829,2]
[375970781,1753804243471,-460.0,0.00018829,2]
[375970784,1753804243481,-460.0,0.00018829,2]
[375970787,1753804243491,-548.54,0.00018829,2]
[375970789,1753804243501,-1639.88,0.00018829,2]
[375970791,1753804243510,-460.0,0.00018829,2]
[375970794,1753804243520,-460.0,0.00018829,2]
[375970796,1753804243530,-328.490059,0.00018829,2]
[375970798,1753804243538,-460.0,0.00018829,2]
[375970800,1753804243548,-460.0,0.00018829,2]
[375970802,1753804243558,-460.0,0.00018829,2]
[375970804,1753804243567,-460.0,0.00018829,2]
[375970805,1753804243577,-548.35,0.00018829,2]
[375970807,1753804243586,-460.0,0.00018829,2]
[375970809,1753804243597,-460.0,0.00018829,2]
[375970811,1753804243606,-460.0,0.00018829,2]
[375970814,1753804243616,-460.0,0.00018829,2]
[375970816,1753804243628,-460.0,0.00018829,2]
[375970818,1753804243638,-458.93904183,0.00018829,2]
[375970820,1753804243647,-460.0,0.00018829,2]
[375970822,1753804243656,-460.0,0.00018829,2]
[375970824,1753804243666,-460.0,0.00018829,2]
[375970826,1753804243676,-550.81,0.00018829,2]